Cogmind - Beta 15 *** ADVENTURER MODE // 2025.05.24 @ 13:14:54 Player: Deep Beef Result: Destroyed by G-50 Soldier with Heavy Laser Performance ------------- Evolutions (3) 1500 Regions Visited (10) 2000 Robots Destroyed (86) 430 Value Destroyed (3111) 3111 Prototype IDs (6) 120 Alien Tech Used (0) 0 Bonus (917) 917 TOTAL SCORE: 8078 Bonus ------- Follower Combat Kills 604 Met Imprinter 300 Was Imprinted 300 Friendly Fire -287 Cogmind --------- Core Integrity 0/700 Matter 275/300 Energy 165/290 System Corruption 0% Temperature Cool (9) Movement Walking (260) Ox2 Location -6/Proximity Caves Parts ------- > --- POWER (1) -------- Improved Deuterium Engine > --- PROPULSION (2) --- Flexi-carbon Leg > --- UTILITY (8) ------ High-capacity Storage Unit Advanced Targeting Computer Armor Integrity Analyzer > --- WEAPON (2) ------- (None) > --- INVENTORY (20) --- Cryofiber Web High-capacity Storage Unit Recoil Stabilizer Makeshift ECM Suite Shock Absorption System System Shield System Restoration Module Hacking Drone Bay (1/1) Bomb Factory No. 2 Storm Laser Improved Datajack Self-destruct Interrupter (50) Peak State ------------ > --- POWER ------------ Light Angular Momentum Engine > --- PROPULSION ------- Armored Treads Medium Treads > --- UTILITY ---------- High-capacity Storage Unit Advanced Weight Redist. System Advanced Targeting Computer Armor Integrity Analyzer Improved Particle Charger Makeshift ECM Suite Hardened Medium Armor Plating Hardened Medium Armor Plating > --- WEAPON ----------- Makeshift Shrapnel Gun Makeshift Axe > --- INVENTORY -------- Angular Momentum Engine Medium Treads Cryofiber Web High-capacity Storage Unit Recoil Stabilizer Makeshift ECM Suite Hardened Medium Armor Plating Shock Absorption System System Shield System Restoration Module Hacking Drone Bay Bomb Factory No. 2 Storm Laser Improved Datajack Great Axe Self-destruct Interrupter [Rating: 54] Favorites ----------- Power Improved Deuterium Engine Engine Improved Deuterium Engine Power Core Light Nuclear Core Propulsion Carbon-fiber Leg Treads Medium Treads Leg Carbon-fiber Leg Wheel Wheel Utility Hardened Medium Armor Plating Device Advanced Weight Redist. System Storage High-capacity Storage Unit Processor Armor Integrity Analyzer Hackware System Shield Protection Hardened Medium Armor Plating Weapon Makeshift Axe Energy Gun EM Pulse Gun Ballistic Gun Assault Rifle Ballistic Cannon Assault Cannon Special Weapon Enhanced Flamer Slashing Weapon Makeshift Axe Special Melee Weapon Improved Datajack Build | -11 -10 -10 -9 -9 -8 -7 -7 -7 -7 -6 ------- Run | Yrd Mat Min Mat Min Mat Fac Low Low Zio Pro Slots Evolved 6 | . . . 2 . 2 2 . . . . Power . | . . . . . . . . . . . Propulsion . | . . . . . . . . . . . Utility 6 | . . . 2 . 2 2 . . . . Weapon . | . . . . . . . . . . . Parts Attached 97 | 6 12 . 2 1 35 3 7 14 1 16 Power 12 | 1 2 . . . 5 . . 1 . 3 Engine 7 | 1 1 . . . 1 . . 1 . 3 Core 5 | . 1 . . . 4 . . . . . Reactor . | . . . . . . . . . . . Propulsion 28 | 2 5 . . . 9 . 2 5 . 5 Treads 5 | . . . . . 2 . . . . 3 Leg 14 | . . . . . 5 . 2 5 . 2 Wheel 9 | 2 5 . . . 2 . . . . . Hover . | . . . . . . . . . . . Flight . | . . . . . . . . . . . Utility 34 | 1 2 . 2 . 13 2 4 6 1 3 Device 15 | . 1 . . . 7 . 1 4 . 2 Storage 3 | 1 1 . . . 1 . . . . . Processor 5 | . . . 1 . 2 . 1 . 1 . Hackware 2 | . . . . . . 2 . . . . Protection 9 | . . . 1 . 3 . 2 2 . 1 Artifact . | . . . . . . . . . . . Weapon 23 | 2 3 . . 1 8 1 1 2 . 5 Energy Gun 6 | . 3 . . . 1 . . . . 2 Energy Cannon . | . . . . . . . . . . . Ballistic Gun 6 | 2 . . . 1 2 . . . . 1 Ballistic Cannon 2 | . . . . . 1 1 . . . . Launcher . | . . . . . . . . . . . Special Weapon 1 | . . . . . . . . . . 1 Impact Weapon . | . . . . . . . . . . . Slashing Weapon 7 | . . . . . 4 . 1 1 . 1 Piercing Weapon . | . . . . . . . . . . . Special Melee Weapon 1 | . . . . . . . . 1 . . Unidentified Prototypes 2 | . . . . . . . . . . 2 Parts Lost 44 | . . . . . 23 1 3 1 . 16 Power 6 | . . . . . 4 . . . . 2 Propulsion 11 | . . . . . 8 . . . . 3 Utility 18 | . . . . . 7 1 3 1 . 6 Weapon 9 | . . . . . 4 . . . . 5 Highest Loss Streak 7 | . . . . . 7 1 3 1 . 7 To Critical Strikes 1 | . . . . . 1 . . . . . Average Backups 15 | 1 7 8 7 8 14 17 19 19 15 14 Power . | . . . . . . . . 1 1 . Propulsion 1 | . . 1 1 1 1 3 . 2 1 . Utility 9 | . 4 7 6 6 7 8 13 10 9 9 Weapon 3 | . 1 . . 1 4 5 4 4 3 1 Tool/Special . | . . . . . . . . . . . Unused Backups 20 | . . . . . 3 . 4 1 3 9 Power 1 | . . . . . . . . . . 1 Propulsion 1 | . . . . . . . 1 . . . Utility 11 | . . . . . 2 . 2 . . 7 Weapon 7 | . . . . . 1 . 1 1 3 1 Tool/Special . | . . . . . . . . . . . Average Slot Usage (%) 95 | . 98 100 95 100 85 90 97 98 99 90 Engine 4 | . 6 . . . . . . 5 7 6 Core 3 | . 7 14 11 11 6 7 7 1 . . Treads 1 | . . . . . 4 . . . . 3 Leg 10 | . . . . . 3 15 15 15 15 10 Wheel 4 | . 27 28 22 22 5 . . . . . Device 19 | . 13 14 11 11 17 15 14 26 23 18 Storage 8 | . 14 14 11 11 9 7 7 7 7 7 Processor 12 | . . . 9 11 18 15 14 9 14 15 Protection 11 | . . . 9 11 5 . 13 15 15 12 Energy Gun 3 | . 12 28 22 16 5 . . . . . Ballistic Gun 2 | . 14 . . 5 4 . . . . 4 Ballistic Cannon 1 | . . . . . . 6 7 1 . . Slashing Weapon 5 | . . . . . 4 7 6 7 7 6 Special Melee Weapon 2 | . . . . . . . . 5 7 . Peak Build Rating 54 | 6 10 10 12 12 26 34 39 48 50 54 Average Rating 37 | 4 8 10 11 11 21 33 37 45 49 47 On Entrance 21 | . 6 10 10 12 12 25 31 36 45 50 Naked Turns . | . . . . . . . . . . . Heaviest Build 84 | 13 30 29 32 33 56 53 75 84 82 84 Greatest Support 57 | 32 32 20 20 20 42 36 36 39 39 57 Greatest Overweight (x) 17 | . 8 1 1 1 17 1 2 2 2 2 Average Overweight (x) 1 | . . 1 1 1 2 1 1 1 2 1 Largest Inventory Capacity 20 | 8 15 15 15 15 20 20 20 20 20 20 Average Capacity 19 | 7 13 15 15 15 19 20 20 20 20 20 Most Carried 20 | 2 15 14 14 14 20 19 20 20 20 20 Average Carried 17 | 1 7 13 12 13 16 17 19 19 19 19 Final Capacity 20 | 8 15 15 15 15 20 20 20 20 20 20 Final Carried 20 | 2 8 14 13 14 19 19 18 20 20 16 Class Distribution -------------------- 30% | Scavenger-Mutant 24% | Mutant 18% | Infiltrator-Mutant 10% | Hacker-Mutant 9% | Derelict-Mutant 4% | Skirmisher 3% | Assassin Dominant Class ---------------- Mutant | -10/Materials Mutant | -10/Mines Mutant | -9/Materials Mutant | -9/Mines Mutant | -8/Materials Hacker-Mutant | -7/Factory Hacker-Mutant | -7/Lower Caves Infiltrator-Mutant | -7/Lower Caves Scavenger-Mutant | -7/Zion Derelict-Mutant | -6/Proximity Caves Resources | -11 -10 -10 -9 -9 -8 -7 -7 -7 -7 -6 ----------- Run | Yrd Mat Min Mat Min Mat Fac Low Low Zio Pro Matter Collected 1858 | 170 260 123 . 59 634 29 81 272 10 220 Remotely . | . . . . . . . . . . . Salvage Created 3372 | . 266 12 81 74 1668 24 288 493 . 466 Parts 180 | . 18 3 3 4 95 4 10 18 . 25 Haulers Intercepted 1 | . . . . . 1 . . . . . Recyclers Shooed 1 | . . . . . 1 . . . . . Parts Field Recycled . | . . . . . . . . . . . Retrieved Matter . | . . . . . . . . . . . Parts Self-Destructed 76 | . . . . . . . 7 32 . 37 Prevented 8 | . . . . . . . . . . 8 Kills | -11 -10 -10 -9 -9 -8 -7 -7 -7 -7 -6 ------- Run | Yrd Mat Min Mat Min Mat Fac Low Low Zio Pro Combat Hostiles Destroyed 76 | . 7 1 3 3 38 . 3 11 . 10 Melee 35 | . . . . . 19 . 3 7 . 6 Guns 33 | . 7 1 3 3 15 . . . . 4 Cannons 8 | . . . . . 4 . . 4 . . Classes Destroyed 10 | . 3 . . . 5 . 1 1 . . Hauler 1 | . . . . . 1 . . . . . Recycler 1 | . . . . . 1 . . . . . Operator 4 | . . . . . 3 1 . . . . Watcher 3 | . 2 . . . 1 . . . . . Swarmer 19 | . 3 1 2 2 8 . . . . 3 Grunt 40 | . 4 . 1 1 20 . 2 8 . 4 Brawler 1 | . . . . . . . 1 . . . Duelist 4 | . . . . . . . . 2 . 2 Sentry 8 | . . . . . 7 . . . . 1 Hunter 3 | . . . . . 3 . . . . . Thug 1 | . . . . . . . . 1 . . Savage 1 | . . . . . . . 1 . . . Best Kill Streak 5 | . 3 1 2 2 5 1 2 4 . 4 Combat Bots Only 5 | . 3 1 2 2 5 . 2 4 . 4 Max Kills in Single Turn 2 | . 2 1 1 2 1 1 1 1 . 1 Gunslinging 1 | . 1 . . 1 . . . . . . Exploded . | . . . . . . . . . . . Melee 1 | . . . . . 1 . 1 1 . 1 Uniques/NPCs Destroyed . | . . . . . . . . . . . Combat | -11 -10 -10 -9 -9 -8 -7 -7 -7 -7 -6 -------- Run | Yrd Mat Min Mat Min Mat Fac Low Low Zio Pro Hostile Shots Fired 741 | . 46 3 6 8 338 9 24 70 . 237 Missed 190 | . 17 2 3 4 78 . 3 21 . 62 Hits 551 | . 29 1 3 4 260 9 21 49 . 175 Melee 23 | . . . . . . . 6 . . 17 Projectile 528 | . 29 1 3 4 260 9 15 49 . 158 Critical Strikes 29 | . . . . . 15 . 4 2 . 8 Damage Taken 6771 | . 269 14 41 34 2720 48 322 567 . 2756 Core 1283 | . 38 5 . . 527 8 12 101 . 592 Absorbed by Shields . | . . . . . . . . . . . Ignored by Resistances 1929 | . 78 2 12 8 791 14 92 164 . 768 Core Remaining (%) 71 | 100 . 82 . 100 4 . . . . . Volleys Fired 150 | . 30 2 6 7 66 1 . 15 . 23 Largest 2 | . 2 2 2 2 2 1 . 1 . 1 Hottest 90 | . 80 80 80 80 90 37 . 37 . 60 Shots Fired 245 | . 60 4 10 14 116 1 . 17 . 23 Gun 211 | . 60 4 10 14 100 . . . . 23 Cannon 34 | . . . . . 16 1 . 17 . . Launcher . | . . . . . . . . . . . Special . | . . . . . . . . . . . Kinetic 170 | . 51 . . 5 79 1 . 17 . 17 Thermal 38 | . 1 2 4 2 29 . . . . . Explosive . | . . . . . . . . . . . Electromagnetic 37 | . 8 2 6 7 8 . . . . 6 Robot Hit Streak 26 | . 14 1 3 13 26 4 . 8 . 23 Robot Miss Streak 2 | . 2 2 2 1 2 . . 1 . 2 Penetration Max . | . . . . . . . . . . . Secondary Targets 6 | . 2 . . 2 2 . . . . . Max Gunslinging Chain 1 | . 1 . . 1 1 . . . . . Shots Hit Robots 306 | . 43 2 5 13 151 2 14 28 . 48 Core Hits 164 | . 19 1 3 5 74 2 6 16 . 38 Critical Kills . | . . . . . . . . . . . Critical Parts Destroyed 1 | . . . . 1 . . . . . . Critical Strikes 17 | . . . . 1 9 . 2 2 . 3 Destroy 2 | . . . . 1 1 . . . . . Sever 15 | . . . . . 8 . 2 2 . 3 Melee Attacks 120 | . . . . . 55 1 17 15 2 30 Impact . | . . . . . . . . . . . Slashing 118 | . . . . . 55 1 17 13 2 30 Piercing . | . . . . . . . . . . . Sneak Attacks 12 | . . . . . 5 1 4 2 . . Combat Hostiles . | . . . . . . . . . . . Follow-up Attacks . | . . . . . . . . . . . Damage Inflicted 7644 | . 598 43 60 178 3522 95 565 790 . 1793 Guns 2652 | . 482 24 60 168 1279 . . . . 639 Cannons 756 | . . . . . 426 20 . 310 . . Explosions 263 | . 68 . . . . . . . . 195 Melee 3893 | . . . . . 1814 75 565 480 . 959 Ramming 80 | . 48 19 . 10 3 . . . . . Kinetic 2567 | . 396 . . 54 1282 20 . 310 . 505 Thermal 655 | . 68 12 22 22 336 . . . . 195 Explosive . | . . . . . . . . . . . Electromagnetic 449 | . 86 12 38 92 87 . . . . 134 Impact . | . . . . . . . . . . . Slashing 3893 | . . . . . 1814 75 565 480 . 959 Piercing . | . . . . . . . . . . . Highest Corruption 5 | . . 2 . . . . 5 5 . . Average Corruption 4 | . . 2 . . . . 4 4 . . Corruption Purged 5 | . . . . . . . . 5 . . Corruption Blocked . | . . . . . . . . . . . Effects 16 | . . 4 . . . . 1 11 . . Message Errors 2 | . . . . . . . . 2 . . Matter Fused 6 | . . 2 . . . . 1 3 . . Heat Flow Errors 1 | . . . . . . . . 1 . . Data Loss (minor) 3 | . . 1 . . . . . 2 . . Data Loss (major) 1 | . . 1 . . . . . . . . Misfires 2 | . . . . . . . . 2 . . Alerts 1 | . . . . . . . . 1 . . Overload Shots . | . . . . . . . . . . . Overflow Damage 137 | . 1 . . . 25 . 18 . . 93 Projectiles . | . . . . . . . . . . . Explosions 50 | . . . . . . . . . . 50 Melee 87 | . 1 . . . 25 . 18 . . 43 Knockbacks 16 | . . . . . 13 . . 3 . . Impact . | . . . . . . . . . . . Kinetic 15 | . . . . . 12 . . 3 . . Secondary 1 | . . . . . 1 . . . . . Self-Inflicted Damage 106 | . 46 9 . 5 . . . . . 46 Shots 2 | . 1 . . . . . . . . 1 Rammed 6 | . 3 1 . 1 1 . . . . . Targets Rammed 7 | . 3 1 . 1 2 . . . . . Kicked 1 | . . . . . 1 . . . . . Crushed . | . . . . . . . . . . . Highest Temperature 238 | . 24 30 84 24 209 . 10 96 . 238 Average Temperature 41 | . 9 16 34 11 56 . 10 18 . 63 Received Heat Transfer 3162 | . 102 . 27 6 1503 18 153 336 . 1017 Siege Activations . | . . . . . . . . . . . Martial Activations . | . . . . . . . . . . . Shielding Activations . | . . . . . . . . . . . Robots Disrupted . | . . . . . . . . . . . Combat Hostiles . | . . . . . . . . . . . Robots Corrupted . | . . . . . . . . . . . Combat Hostiles . | . . . . . . . . . . . Parts Fried 1 | . 1 . . . . . . . . . Impact Corruptions 1 | . 1 . . . . . . . . . Robots Melted . | . . . . . . . . . . . Combat Hostiles . | . . . . . . . . . . . Parts Melted . | . . . . . . . . . . . Heat Transferred 1239 | . 100 25 50 50 814 . . . . 200 Parts Sabotaged . | . . . . . . . . . . . Parts Stolen . | . . . . . . . . . . . Parts Stripped . | . . . . . . . . . . . Power Chain Reactions 2 | . 1 . . . . . . . . 1 Alert | -11 -10 -10 -9 -9 -8 -7 -7 -7 -7 -6 ------- Run | Yrd Mat Min Mat Min Mat Fac Low Low Zio Pro Maximum Alert Level 1 | . . . . . 1 . . . . . Low Security (%) 96 | 100 100 100 100 100 92 100 . . . . Level 1 3 | . . . . . 7 . . . . . Level 2 . | . . . . . . . . . . . Level 3 . | . . . . . . . . . . . Level 4 . | . . . . . . . . . . . Level 5 . | . . . . . . . . . . . High Security . | . . . . . . . . . . . Max Security . | . . . . . . . . . . . Peak Influence 230 | . 108 74 98 163 230 48 . . . . Initial 48 | . . . . 20 . 48 . . . . Average 47 | . 17 11 70 67 72 21 . . . . Influence Increases 2936 | . 283 74 133 260 1210 5 80 377 . 514 Destroy 0b10 Robot/C 2000 | . 140 60 100 200 760 . 60 320 . 360 Destroy 0b10 Robot/NC 65 | . 10 . . . 30 5 10 . . 10 Destroy Leader 358 | . 34 10 10 30 184 . 10 50 . 30 Allied During Kill 83 | . . 4 18 30 . . . 7 . 24 Trap Triggered on 0b10 20 | . . . . . 20 . . . . . Successful Hack 28 | . 18 . 5 . 5 . . . . . Disable Machine 18 | . 18 . . . . . . . . . Destroy Structure 4 | . 3 . . . 1 . . . . . Partial Spotted 15 | . . . . . 15 . . . . . Lose Combat Pursuer 345 | . 60 . . . 195 . . . . 90 Influence Decreases 2936 | . 283 74 70 323 1085 130 80 377 . 514 Entered New Map 120 | . . . . 43 . 77 . . . . Time Decay 2315 | . 283 74 50 210 809 53 60 377 . 399 Lost Part 311 | . . . . . 205 . 20 . . 86 Lost Ally 119 | . . . 20 70 . . . . . 29 Purge Threat 71 | . . . . . 71 . . . . . Squads Dispatched 12 | . . 1 1 . 8 1 . . . 1 Investigation 3 | . . . 1 . 2 . . . . . Extermination . | . . . . . . . . . . . Reinforcement 5 | . . . . . 4 1 . . . . Assault 2 | . . 1 . . . . . . . 1 Garrison 2 | . . . . . 2 . . . . . Intercept . | . . . . . . . . . . . Searches Triggered . | . . . . . . . . . . . Construction Impeded . | . . . . . . . . . . . Haulers Reinforced . | . . . . . . . . . . . Active Scanning Responses . | . . . . . . . . . . . Cargo Convoy Interrupts . | . . . . . . . . . . . Stealth | -11 -10 -10 -9 -9 -8 -7 -7 -7 -7 -6 --------- Run | Yrd Mat Min Mat Min Mat Fac Low Low Zio Pro Distress Signals 9 | . 3 . . . 5 . . . . 1 Communications Jammed . | . . . . . . . . . . . Distress Signals . | . . . . . . . . . . . Times Spotted 174 | . 20 3 6 10 69 2 3 19 . 42 Peak Tracking Total 7 | . 4 3 3 7 6 1 3 4 . 5 Tactical Retreats 22 | . 3 . . . 9 . . 3 . 7 Traps | -11 -10 -10 -9 -9 -8 -7 -7 -7 -7 -6 ------- Run | Yrd Mat Min Mat Min Mat Fac Low Low Zio Pro Traps Triggered 7 | . 6 . . . 1 . . . . . Indirectly . | . . . . . . . . . . . Trap Hack Attempts . | . . . . . . . . . . . Triggered . | . . . . . . . . . . . Disarmed 4 | . 4 . . . . . . . . . Reprogrammed 3 | . . . . . 3 . . . . . Reused 2 | . . . . . 2 . . . . . Traps Extracted . | . . . . . . . . . . . Installed . | . . . . . . . . . . . Triggered 2 | . . . . . 2 . . . . . Most Traps Carried 5 | . . 5 5 5 5 . . . . . Machines | -11 -10 -10 -9 -9 -8 -7 -7 -7 -7 -6 ---------- Run | Yrd Mat Min Mat Min Mat Fac Low Low Zio Pro Machines Disabled 2 | . 2 . . . . . . . . . Max in Single Turn 1 | . 1 . . . . . . . . . Machines Repaired . | . . . . . . . . . . . Machines Dismantled . | . . . . . . . . . . . Machines Sabotaged . | . . . . . . . . . . . Overloaded Fab Kills . | . . . . . . . . . . . Hacking | -11 -10 -10 -9 -9 -8 -7 -7 -7 -7 -6 --------- Run | Yrd Mat Min Mat Min Mat Fac Low Low Zio Pro Machines Accessed 16 | . 7 . 1 . 6 . 1 1 . . Terminals 15 | . 7 . 1 . 6 . . 1 . . Fabricators . | . . . . . . . . . . . Repair Stations . | . . . . . . . . . . . Recycling Units . | . . . . . . . . . . . Scanalyzers . | . . . . . . . . . . . Garrison Access . | . . . . . . . . . . . Total Hacks 46 | . 21 . 4 . 19 . 1 1 . . Successful 36 | . 14 . 4 . 16 . 1 1 . . Failed 10 | . 7 . . . 3 . . . . . Catastrophic 1 | . . . . . 1 . . . . . Database Lockouts . | . . . . . . . . . . . Manual 13 | . 6 . 1 . 6 . . . . . Terminals 45 | . 21 . 4 . 19 . . 1 . . Fabricators . | . . . . . . . . . . . Repair Stations . | . . . . . . . . . . . Recycling Units . | . . . . . . . . . . . Scanalyzers . | . . . . . . . . . . . Garrison Access . | . . . . . . . . . . . Terminal Hacks 26 | . 10 . 3 . 11 . 1 1 . . Record 1 | . . . . . . . . 1 . . Prototype ID Bank 2 | . 2 . . . . . . . . . Open Door 1 | . . . . . . . 1 . . . Emergency Access Points 2 | . . . . . 2 . . . . . Terminal Index 1 | . . . . . 1 . . . . . Recycling Unit Index 1 | . . . . . 1 . . . . . Scanalyzer Index 1 | . 1 . . . . . . . . . Unreport Threat 1 | . . . . . 1 . . . . . Locate Traps 3 | . 2 . . . 1 . . . . . Disarm Traps 2 | . 2 . . . . . . . . . Reprogram Traps 1 | . . . . . 1 . . . . . Dispatch Records 2 | . . . 1 . 1 . . . . . Maintenance Status 1 | . . . 1 . . . . . . . Patrol Status 1 | . 1 . . . . . . . . . Hauler Manifests 1 | . . . 1 . . . . . . . Zone Layout 5 | . 2 . . . 3 . . . . . Fabricator Hacks . | . . . . . . . . . . . Repair Station Hacks . | . . . . . . . . . . . Recycling Unit Hacks . | . . . . . . . . . . . Scanalyzer . | . . . . . . . . . . . Garrison Access Hacks . | . . . . . . . . . . . Unauthorized Hacks 10 | . 4 . 1 . 5 . . . . . Terminals 10 | . 4 . 1 . 5 . . . . . Assimilate 1 | . 1 . . . . . . . . . Botnet 9 | . 3 . 1 . 5 . . . . . Fabricators . | . . . . . . . . . . . Repair Stations . | . . . . . . . . . . . Recycling Units . | . . . . . . . . . . . Scanalyzers . | . . . . . . . . . . . Garrison Access . | . . . . . . . . . . . Data Cores Recovered . | . . . . . . . . . . . Used . | . . . . . . . . . . . Hacking Detections 13 | . 6 . 1 . 6 . . . . . Full Trace Events 4 | . 1 . 1 . 2 . . . . . Feedback Events . | . . . . . . . . . . . Feedback Blocked . | . . . . . . . . . . . Robot Schematics Acquired 3 | . . . . . . . . . 3 . Robots Built . | . . . . . . . . . . . Authchips . | . . . . . . . . . . . Time . | . . . . . . . . . . . Total Robot Build Rating . | . . . . . . . . . . . Part Schematics Acquired 15 | . . . . . . . . . 15 . Parts Built . | . . . . . . . . . . . Authchips . | . . . . . . . . . . . Time . | . . . . . . . . . . . Total Part Build Rating . | . . . . . . . . . . . Parts Repaired . | . . . . . . . . . . . Time . | . . . . . . . . . . . Parts Recycled . | . . . . . . . . . . . Recycled Matter . | . . . . . . . . . . . Retrieved Matter . | . . . . . . . . . . . Retrieved Components . | . . . . . . . . . . . Parts Scanalyzed . | . . . . . . . . . . . Part Schematics Acquired . | . . . . . . . . . . . Parts Damaged . | . . . . . . . . . . . Bothacking | -11 -10 -10 -9 -9 -8 -7 -7 -7 -7 -6 ------------ Run | Yrd Mat Min Mat Min Mat Fac Low Low Zio Pro Used RIF Installer . | . . . . . . . . . . . Robots Hacked . | . . . . . . . . . . . Non-combat . | . . . . . . . . . . . Combat . | . . . . . . . . . . . Robot Hacks Applied . | . . . . . . . . . . . Relay Couplers Released . | . . . . . . . . . . . Fabnet Peak Effective % . | . . . . . . . . . . . Robots Rewired 2 | . . . . . . . . 2 . . Allies Hacked . | . . . . . . . . . . . Hacks Repelled . | . . . . . . . . . . . Allies | -11 -10 -10 -9 -9 -8 -7 -7 -7 -7 -6 -------- Run | Yrd Mat Min Mat Min Mat Fac Low Low Zio Pro Total Allies 13 | . . 6 . 1 . . . 2 4 . Largest Group 6 | . . 6 6 5 . . . 2 5 5 Highest-Rated Group 180 | . . 117 117 108 . . . 50 180 180 Highest-Rated Ally 41 | . . 31 31 31 . . . 25 41 41 Total Orders . | . . . . . . . . . . . Ally Attacks 122 | . . 5 17 23 . . . 18 . 59 Total Damage 2221 | . . 65 161 351 . . . 432 . 1212 Kills 30 | . . 2 2 8 . . . 6 . 12 Allies Corrupted . | . . . . . . . . . . . Allies Melted . | . . . . . . . . . . . Intel | -11 -10 -10 -9 -9 -8 -7 -7 -7 -7 -6 ------- Run | Yrd Mat Min Mat Min Mat Fac Low Low Zio Pro Active Infowar (turns) 14583 | . 1307 468 103 487 1999 142 1463 3154 3804 1656 Sensors 5769 | . 1307 468 103 487 1801 142 1461 . . . Terrain 386 | . . . . . 386 . . . . . Structural 1437 | . . . . . 1437 . . . . . Jamming 319 | . . . . . . . . 319 . . ECM 8318 | . . . . . . . 2 2856 3804 1656 Robot Analysis Total . | . . . . . . . . . . . Derelict Logs Recovered 8 | . . 2 . 1 . . 2 2 1 . Drone Launches . | . . . . . . . . . . . Drone Recoveries . | . . . . . . . . . . . Exploration | -11 -10 -10 -9 -9 -8 -7 -7 -7 -7 -6 ------------- Run | Yrd Mat Min Mat Min Mat Fac Low Low Zio Pro Turns Passed 15482 | 46 1340 468 103 487 1999 142 1551 3519 3804 2023 Spaces Moved 7391 | 36 1179 468 86 480 821 68 762 1330 1456 705 Core 20 | 1 3 . . . 16 . . . . . Treads 333 | . . . . . 154 . . . . 179 Legs 4264 | . . . . . 122 68 762 1330 1456 526 Wheels 2774 | 35 1176 468 86 480 529 . . . . . Hover . | . . . . . . . . . . . Flight . | . . . . . . . . . . . Fastest Speed 50 | 50 95 95 95 95 95 195 190 190 260 190 Average Speed 193 | 98 99 95 95 95 180 195 193 256 260 255 Slowest Speed 900 | 100 450 95 95 95 900 195 260 260 260 330 Overloaded Moves . | . . . . . . . . . . . Propulsion Burnouts . | . . . . . . . . . . . Robots Hopped . | . . . . . . . . . . . Potential Cave-ins . | . . . . . . . . . . . Cave-ins Triggered . | . . . . . . . . . . . Exploration Rate (%) 61 | 3 100 77 19 86 64 2 68 95 91 69 Regions Visited 10 Branch Regions 6 Pre-discovered Areas 3 | . . 1 . 1 . . . . 1 . Known Exits Taken 4 | . . . 1 . 1 1 1 . . . Unknown Exits Taken 6 | 1 1 1 . 1 . . . 1 1 . Scrap Searched 18 | . . 2 . 1 . . 5 6 1 3 Spaces Dug . | . . . . . . . . . . . Terrain Destroyed 10 | . 3 . . . . . . 1 . 6 Melee . | . . . . . . . . . . . Projectile 1 | . . . . . . . . 1 . . AOE 9 | . 3 . . . . . . . . 6 Terrain Rammed . | . . . . . . . . . . . Walls Destroyed . | . . . . . . . . . . . Machines Disabled . | . . . . . . . . . . . Actions | -11 -10 -10 -9 -9 -8 -7 -7 -7 -7 -6 --------- Run | Yrd Mat Min Mat Min Mat Fac Low Low Zio Pro Total 8182 | 43 1283 487 97 496 1146 75 820 1399 1477 859 Wait 246 | . 26 11 3 6 116 . 1 13 8 62 Move 7381 | 35 1178 467 85 479 820 67 761 1329 1455 705 Hop . | . . . . . . . . . . . Pick Up 100 | 2 23 6 1 1 31 3 15 4 4 10 Fast Attach 27 | 6 2 . . 1 10 . 2 2 . 4 Attach 58 | . 13 . 2 . 19 3 5 3 1 12 Detach 3 | . . . . . 1 . . . . 2 Swap 28 | . 4 . . . 12 . . 10 . 2 Drop 57 | . 4 . . 1 14 . 14 8 7 9 Fire 150 | . 30 2 6 7 66 1 . 15 . 23 Melee 120 | . . . . . 55 1 17 15 2 30 Ram 6 | . 3 1 . 1 1 . . . . . Kick 1 | . . . . . 1 . . . . . Crush . | . . . . . . . . . . . Escape Stasis . | . . . . . . . . . . . Rewire 5 | . . . . . . . 5 . . . Trap . | . . . . . . . . . . . Miscellaneous . | . . . . . . . . . . . Route ------- -11/Scrapyard -10/Materials (discovered 5 exits: *Mat x3 / [*Min x2]) -10/Mines -9/Materials -9/Mines (discovered 2 exits: *Mat x2) -8/Materials (discovered 2 exits: *Fac x2) -7/Factory -7/Lower Caves -7/Lower Caves (discovered 2 exits: *Fac / *Zio) -7/Zion -6/Proximity Caves History --------- Turn | Location | Event 16 | -11/Scrapyard | Discovered new exit (range 16) 47 | -11/Scrapyard | Entered Materials 208 | -10/Materials | Discovered new exit (range 15) 301 | -10/Materials | Discovered new exit (range 16) 313 | -10/Materials | Build established: Mutant 344 | -10/Materials | Discovered new exit (range 13) 502 | -10/Materials | Discovered new exit (range 5) 694 | -10/Materials | Discovered new exit (range 12) 1387 | -10/Materials | Entered Mines 1389 | -10/Mines | Assisted by bots powering up and referring to "LRC-V3" 1415 | -10/Mines | Found a hidden stash of uninstalled traps 1726 | -10/Mines | Learned 2 Materials zone layouts 1829 | -10/Mines | Met a Derelict testing a Signal Generator 1829 | -10/Mines | Discovered new exit (range 11) 1855 | -10/Mines | Entered Materials 1855 | -9/Materials | Accompanied by 6 allies 1855 | -9/Materials | Evolved 2 slots: Utility x2 1856 | -9/Materials | Identified exit to Mines 1860 | -9/Materials | Led the pair of lost Derelicts to an unsafe place 1958 | -9/Materials | Entered Mines 1958 | -9/Mines | Accompanied by 5 allies 1959 | -9/Mines | Learned location of Storage (-7) 1968 | -9/Mines | Learned Materials emergency access door positions 2021 | -9/Mines | Discovered new exit (range 13) 2206 | -9/Mines | Discovered new exit (range 9) 2324 | -9/Mines | Escorted by a lone wolf Derelict 2382 | -9/Mines | Assembled infested the area 2429 | -9/Mines | Lost 3 allies 2445 | -9/Mines | Entered Materials 2445 | -8/Materials | Evolved 2 slots: Utility x2 2749 | -8/Materials | Build established: Skirmisher 3003 | -8/Materials | Garrison activated, responded to threat 3257 | -8/Materials | Garrison activated, responded to threat 3340 | -8/Materials | Core integrity fell below 50% 3357 | -8/Materials | Lost 7 parts (2p2n2u1w) 3577 | -8/Materials | Discovered new exit (range 16) 3797 | -8/Materials | Build established: Assassin 3898 | -8/Materials | Core integrity fell below 20% 3914 | -8/Materials | Lost 5 parts (1p1n2u1w) 4199 | -8/Materials | Build established: Mutant 4210 | -8/Materials | Discovered new exit (range 9) 4397 | -8/Materials | Lost 3 parts (2n1u) 4442 | -8/Materials | Identified exit to Factory 4444 | -8/Materials | Entered Factory 4444 | -7/Factory | Evolved 2 slots: Utility x2 4447 | -7/Factory | Discovered new exit (range 7) 4564 | -7/Factory | Identified exit to Lower Caves 4586 | -7/Factory | Entered Lower Caves 4749 | -7/Lower Caves | Build established: Hacker-Mutant 5438 | -7/Lower Caves | Encountered a Warlord checkpoint 5631 | -7/Lower Caves | Learned Factory trap positions 5754 | -7/Lower Caves | Discovered new exit (range 10) 5763 | -7/Lower Caves | Learned Factory security intel 6078 | -7/Lower Caves | Lost 3 parts (3u) 6135 | -7/Lower Caves | Identified exit to Lower Caves 6137 | -7/Lower Caves | Entered another Lower Caves area 6209 | -7/Lower Caves | Discovered new exit (range 9) 6229 | -7/Lower Caves | Identified exit to Factory 6586 | -7/Lower Caves | Build established: Infiltrator-Mutant 7569 | -7/Lower Caves | Discovered new exit (range 13) 8135 | -7/Lower Caves | Learned Factory emergency access door positions 8148 | -7/Lower Caves | Attracted the attention of an 0b10 checkpoint 8657 | -7/Lower Caves | Learned Factory emergency access door positions 8759 | -7/Lower Caves | Encountered a Warlord checkpoint 9592 | -7/Lower Caves | Build established: Scavenger-Mutant 9656 | -7/Lower Caves | Entered Zion 9656 | -7/Zion | Accompanied by 1 ally 9802 | -7/Zion | Found Prototype Energy Gun 9834 | -7/Zion | Discovered new exit (range 10) 10038 | -7/Zion | Found Prototype Device 10508 | -7/Zion | Given A8's code to call for help 10781 | -7/Zion | Given the Hacking Drone Bay 10782 | -7/Zion | Found Prototype Device 11252 | -7/Zion | Met Imprinter 11426 | -7/Zion | Learned location of Recycling (-7) 11530 | -7/Zion | Learned Factory emergency access door positions 12733 | -7/Zion | Imprinted 12735 | -7/Zion | Declared Zion's savior 13460 | -7/Zion | Entered Proximity Caves 13460 | -6/Proximity Caves | Accompanied by 5 allies 13541 | -6/Proximity Caves | Spotter reported a threat 13562 | -6/Proximity Caves | Attracted the attention of an 0b10 checkpoint 13574 | -6/Proximity Caves | Spotter reported a threat 13723 | -6/Proximity Caves | Spotter reported a threat 13838 | -6/Proximity Caves | Build established: Derelict-Mutant 14295 | -6/Proximity Caves | Received a Behemoth hack from an annoying Tinkerer 14859 | -6/Proximity Caves | Attracted the attention of an 0b10 outpost 14948 | -6/Proximity Caves | Core integrity fell below 50% 14997 | -6/Proximity Caves | Lost 7 parts (1p1n3u2w) 15260 | -6/Proximity Caves | Build established: Mutant 15287 | -6/Proximity Caves | Identified Bomb Factory No. 2 15289 | -6/Proximity Caves | Identified Hacking Drone Bay 15473 | -6/Proximity Caves | Core integrity fell below 20% 15483 | -6/Proximity Caves | Destroyed by G-50 Soldier with Heavy Laser Last Messages --------------- Identified Hacking Drone Bay. Acquired 40 matter. Acquired Hrd. Medium Armor Plating. Acquired Carbon-fiber Leg. Acquired 10 matter. Acquired Riot Gun. Acquired Enh. Flamer. Acquired Imp. Deuterium Engine. Mak. ECM Suite destroyed. Hrd. Medium Armor Plating destroyed. Angular Momentum Engine destroyed. Great Axe destroyed. Enh. Flamer destroyed. Chain reaction triggered in Imp. Deuterium Engine. Destroyed Carbon-fiber Leg. Carbon-fiber Leg destroyed. Destroyed Carbon-fiber Leg. Riot Gun destroyed. Destroyed Riot Gun. Carbon-fiber Leg severed. Map ----- +----------------------------------------------------+ | | | | | | | ?????????????????????????????????????????????????? | | ?????????????????????????????????????????????????? | | ?????????????????????????????????????????????????? | | ?????????????????????????????????????????????????? | | ?????????????????????????????????????????????????? | | ?????????????????????????????????????????????????? | | ?????????????????????????????????????????????????? | | ?????????????????????????????????????????????????? | | ?????????????????????????????????????????????????? | | ?????????????????????????????????????????????????? | | ?????????????????????????????????????????????????? | | ?????????????????????????????????????????????????? | | ?????????????????????????????????????????????????? | | ?????????????????????????????????????????????????? | | ????????????????????????####?????????????????????? | | ???????????????????###### ########?????????????## | | ???????????????????? #???????????? | | ???????????? ??????? ? #??????????? | | ??????????? ?????# ? ##??????????? | | ?????????? #### #? #??????????? | | ?????????? #? #??????????? | | ??????????# ## #???????????? | | ???????????# ##### @ #????????????# | | ??????????????????????#### #????????????# | | ??????????????????????# #l ### ????## | | ??????????????????????##"" g ##????? ?????# | | ?????????????????????## = ##??????????# ?????# | | ?????????????????????# "#???????????????????# | | ?????????????????????# "#???????????????##### | | ?????????????????????# ##???????????????# ! | | ?????????????????????# #????????????????# % | | ?????????????????????# ##???????#####????# | | ?????????????????????## ##???????# ####?# | | ??????????????????????# #???????# #?### ## | | ??????????????????????# #####???# ##??# ## | | ??????????????????????## #???### ##?# #? | | ???????????????????????## ### #?????## ### #? | | ????????????????????????# #?# #??????# ## ## | | ???????????????????????## ###%######## | | ??????????????????##???# "" ## ## | | ?????????????????? ???## =% ### #?## ## | | ???????????######## #???## ==%%"## ##?## ### | | ???????????#""""""# ###??##" ""## #### #?# | | ???????????#"? # # ##??#" # ## [ * #?# | | ???????????#" ## #?##!% ### !%! #?# | | ???????????#" # #?#% [ ##### ### | | ???????????#" # ### #???# ## | +----------------------------------------------------+ Best States ------------- Heat Dissipation 45 Energy Generation 18 Energy Capacity 300 Matter Stores 300 Matter Capacity 300 Sight Range 16 Robot Scan Range 15 Terrain Scan Range 14 Terrain Scan Density 10 ECM Strength 2 Jamming Range 12 Additional Mass Support 9 Armor Coverage 450 Resistance: KI 20 Resistance: TH 20 Resistance: EX 20 Resistance: EM 20 Resistance: I 20 Resistance: S 20 Resistance: P 20 Evasion (%) 41 Targeting Accuracy 8 Armor Integrity Analysis 30 Recoil Reduction 2 Particle Charging 20 Offensive Hacking 20 Defensive Hacking 10 Item Schematics ----------------- Imp. Melee Analysis Suite | -7/Zion | Archive Focal Shield | -7/Zion | Archive Hvy. Flak Cannon | -7/Zion | Archive Coolant Injector | -7/Zion | Archive Imp. Medium Treads | -7/Zion | Archive Gravmag System | -7/Zion | Archive Adv. Shield Generator | -7/Zion | Archive Imp. Thermal Shield | -7/Zion | Archive Lyr. Light Armor Plating | -7/Zion | Archive Proton Cannon | -7/Zion | Archive Matter Filter | -7/Zion | Archive Fission Core | -7/Zion | Archive Transmission Jammer | -7/Zion | Archive Adv. Sensor Array | -7/Zion | Archive Lrn. Phase Cannon | -7/Zion | Archive Robot Schematics ------------------ Y-54 Guardian | -7/Zion | Archive S-27 Virus | -7/Zion | Archive A-02 Transporter | -7/Zion | Archive Fabricated ------------ Nothing Repaired ---------- Nothing Alien Tech Used ----------------- None Achievements -------------- None Challenges ------------ None Game ------ Seed TowerMasterFemtoactuators Manual? 0 Play Time 02:06:23 Cumulative 185.9 hours Start 2025.05.22 @ 23:53:20 End 2025.05.24 @ 13:14:54 Sessions 3 Manual Loads 0 Difficulty Adventurer Special Mode None Game No. 139 Rogue 72 Adventurer 67 Explorer 0 Win Type - Total 1 Types 1/0/0/0/0/0/0/0/0/0 Lore% 37 Gallery% 55 Achievement% 47 Wizard Run 0 Options --------- Layout 1 ASCII 0 Keyboard 0 Movement Mouse Keybinds 0 Fullscreen 1 Font 16/SmallcapsGlow Map View 55x38 Zoom Use 0% Tactical HUD 0 Map Filters NONE Filters NONE Steam 1 RUN: 9acc3f1b-b3fb-495f-b584-df5ba25690e3